fUST/lending_fUST_20250625
["ID","MTS","AMOUNT","RATE_DAILY","PERIOD"]
[367566854,1750860640524,-460.0,0.00016556,2]
[367566855,1750860640533,-461.01546838,0.00016556,2]
[367566856,1750860640542,-460.0,0.00016556,2]
[367566857,1750860640551,-460.0,0.00016556,2]
[367566858,1750860640560,-602.82,0.00016556,2]
[367566859,1750860640569,-460.0,0.00016556,2]
[367566860,1750860640579,-2306.85,0.00016556,2]
[367566861,1750860640589,-460.0,0.00016556,2]
[367566862,1750860640598,-518.44,0.00016556,2]
[367566863,1750860640607,-1526.9,0.00016556,2]
[367566864,1750860640617,-460.0,0.00016556,2]
[367566865,1750860640626,-713.99,0.00016556,2]
[367566866,1750860640635,-460.0,0.00016556,2]
[367566867,1750860640644,-796.76,0.00016556,2]
[367566868,1750860640653,-6595.48,0.00016556,2]
[367566869,1750860640662,-815.6,0.00016556,2]
[367566870,1750860640672,-460.0,0.00016556,2]
[367566871,1750860640681,-1121.1,0.00016556,2]
[367566872,1750860640691,-2350.15,0.00016556,2]
[367566873,1750860640700,-98.8627232,0.00016556,2]
[367566874,1750860640715,-1018.8,0.00016556,2]
[367566875,1750860640726,-377.4272768,0.00016556,2]
[367566876,1750860640736,-460.0,0.00016556,2]
[367566877,1750860640746,-460.0,0.00016556,2]
[367566878,1750860640755,-430.18442751,0.00016556,2]
[367566879,1750860640767,-29.81557249,0.00016556,2]
[367566880,1750860640777,-417.58325611,0.00016556,2]
[367566881,1750860640786,-1849.42468067,0.00016556,2]
[367567189,1750860646235,-10058.0,0.00016554,2]
[367567191,1750860646247,-460.0,0.00016555,2]
[367567193,1750860646256,-111.51531933,0.00016556,2]
[367567195,1750860646265,-1462.44,0.00016556,2]
[367567197,1750860646275,-545.1987383,0.00016557,2]
[367567199,1750860646284,-400.0,0.00016557,2]
[367567201,1750860646294,-460.0,0.00016557,2]
[367567203,1750860646303,-460.0,0.00016557,2]
[367567205,1750860646312,-460.0,0.00016557,2]
[367567207,1750860646321,-489.79383217,0.00016557,2]
[367567209,1750860646330,-654.05,0.00016557,2]
[367567211,1750860646339,-445.8941414,0.00016557,2]
[367567213,1750860646348,-460.0,0.00016557,2]
[367567215,1750860646357,-355.96625459,0.00016557,2]
[367567708,1750860744991,1000.0,0.00025493,60]
[367567709,1750860804521,11629.7083843,0.00015554,2]
[367567710,1750860837775,2507.19592348,0.000161,2]
[367567711,1750860837799,157.3835102,0.000161,2]
[367567714,1750861345016,163.0,0.00013699,2]
[367567715,1750861345042,0.909859,0.00013699,2]
[367567718,1750861384993,179.9960626,0.00015549,2]
[367567719,1750861416734,200.3151912,0.00015668,2]
[367567722,1750861719492,150.999999,0.00025498,120]
[367567769,1750861832365,-300.0,0.00016447,2]
[367567771,1750861832374,-657.95479972,0.00016448,2]
[367567819,1750861838409,-500.0,0.00016447,2]
[367567821,1750861838418,-500.0,0.00016447,2]
[367567823,1750861838427,-500.0,0.00016447,2]
[367567825,1750861838437,-500.0,0.00016447,2]
[367567827,1750861838446,-194.3100033,0.00016447,2]
[367567829,1750861838456,-500.0,0.00016447,2]
[367567831,1750861838465,-460.0,0.00016447,2]
[367567833,1750861838475,-35214.97007867,0.00016448,2]
[367567835,1750861838485,-460.0,0.00016449,2]
[367567837,1750861838495,-460.0,0.00016449,2]
[367567839,1750861838506,-467.76442042,0.00016449,2]
[367567841,1750861838515,-470.31784457,0.00016449,2]
[367567843,1750861838524,-460.0,0.00016449,2]
[367567845,1750861838534,-460.0,0.00016449,2]
[367567847,1750861838543,-460.0,0.00016449,2]
[367567849,1750861838553,-460.0,0.00016449,2]
[367567851,1750861838563,-461.79837303,0.00016449,2]
[367567852,1750861838572,-460.0,0.00016449,2]
[367567854,1750861838581,-460.0,0.00016449,2]
[367567856,1750861838590,-1615.17,0.00016449,2]
[367567858,1750861838599,-460.0,0.00016449,2]
[367567859,1750861838609,-460.0,0.00016449,2]
[367567860,1750861838618,-462.83548451,0.00016449,2]
[367567861,1750861838627,-460.0,0.00016449,2]
[367567862,1750861838636,-460.0,0.00016449,2]
[367567863,1750861838645,-460.0,0.00016449,2]
[367567864,1750861838654,-460.0,0.00016449,2]
[367567865,1750861838664,-460.0,0.00016449,2]
[367567866,1750861838673,-460.0,0.00016449,2]
[367567867,1750861838683,-460.0,0.00016449,2]
[367567868,1750861838692,-460.0,0.00016449,2]
[367567869,1750861838701,-440.49910396,0.00016449,2]
[367567870,1750861838710,-460.0,0.00016449,2]
[367567871,1750861838720,-9642.90366112,0.00016449,2]
[367567872,1750861838730,-361.05313498,0.00016452,2]
[367567873,1750861838741,-221.3884784,0.00016455,2]
[367567874,1750861838750,-1461.5,0.00016545,3]
[367567875,1750861838760,-730.75,0.00016545,3]
[367567876,1750861838769,-365.38,0.00016545,3]
[367567877,1750861838778,-182.69,0.00016545,3]
[367567878,1750861838788,-548.07,0.00016545,3]
[367567879,1750861838799,-500.0,0.00016549,2]
[367567880,1750861838814,-315.06135463,0.00016549,2]
[367567881,1750861838823,-500.0,0.00016549,2]
[367567882,1750861838833,-500.0,0.00016549,2]
[367567883,1750861838843,-261.6302966,0.00016549,2]
[367567884,1750861838853,-167.36365132,0.00016549,2]
[367567885,1750861838862,-500.0,0.00016549,2]
[367567886,1750861838872,-500.0,0.00016549,2]
[367567887,1750861838881,-460.0,0.0001655,2]
[367567888,1750861838891,-433.71951333,0.0001655,2]
[367567889,1750861838901,-460.0,0.0001655,2]
[367567890,1750861838910,-460.0,0.0001655,2]
[367567891,1750861838920,-460.0,0.0001655,2]
[367567892,1750861838929,-460.0,0.0001655,2]
[367567893,1750861838938,-460.0,0.0001655,2]
[367567895,1750861838947,-460.0,0.0001655,2]
[367567896,1750861838956,-460.0,0.0001655,2]
[367567897,1750861838965,-460.0,0.0001655,2]
[367567898,1750861838975,-2966.93,0.0001655,2]
[367567899,1750861838985,-534.68,0.0001655,2]
[367567900,1750861838997,-460.0,0.0001655,2]
[367567901,1750861839006,-460.0,0.0001655,2]
[367567902,1750861839016,-460.0,0.0001655,2]
[367567903,1750861839025,-2654.77,0.0001655,2]
[367567904,1750861839035,-460.0,0.0001655,2]
[367567905,1750861839044,-460.0,0.0001655,2]
[367567906,1750861839054,-460.0,0.0001655,2]
[367567907,1750861839063,-460.0,0.0001655,2]
[367567908,1750861839073,-460.0,0.0001655,2]
[367567909,1750861839082,-1973.41,0.0001655,2]
[367567910,1750861839091,-597.1,0.0001655,2]
[367567911,1750861839101,-460.0,0.0001655,2]
[367567912,1750861839110,-460.0,0.0001655,2]
[367567913,1750861839119,-1548.17,0.0001655,2]
[367567914,1750861839128,-2257.2,0.0001655,2]
[367567915,1750861839138,-463.13213644,0.0001655,2]
[367567916,1750861839147,-460.0,0.0001655,2]
[367567917,1750861839156,-936.71,0.0001655,2]
[367567918,1750861839166,-460.0,0.0001655,2]
[367567919,1750861839175,-460.0,0.0001655,2]
[367567920,1750861839184,-460.13,0.0001655,2]
[367567921,1750861839194,-1549.18,0.0001655,2]
[367567922,1750861839203,-460.0,0.0001655,2]
[367567923,1750861839212,-200.0,0.0001655,10]
[367567924,1750861839221,-200.0,0.0001655,10]
[367567925,1750861839233,-156.929434,0.0001655,10]
[367567926,1750861839242,-460.0,0.0001655,2]
[367567927,1750861839251,-460.0,0.0001655,2]
[367567928,1750861839261,-445.49132764,0.0001655,2]
[367567929,1750861839270,-460.0,0.0001655,2]
[367567930,1750861839279,-460.0,0.0001655,2]
[367567931,1750861839289,-469.55,0.0001655,2]
[367567932,1750861839298,-500.0,0.00016551,2]
[367567933,1750861839308,-460.0,0.00016551,2]
[367567934,1750861839317,-460.0,0.00016551,2]
[367567935,1750861839327,-460.0,0.00016551,2]
[367567936,1750861839336,-460.0,0.00016551,2]
[367567937,1750861839346,-460.0,0.00016551,2]
[367567938,1750861839355,-460.0,0.00016551,2]
[367567939,1750861839365,-500.0,0.00016551,2]
[367567940,1750861839374,-500.0,0.00016551,2]
[367567941,1750861839383,-460.0,0.00016551,2]
[367567942,1750861839393,-460.0,0.00016551,2]
[367567943,1750861839402,-460.0,0.00016551,2]
[367567944,1750861839411,-570.09423038,0.00016551,2]
[367567945,1750861839421,-460.0,0.00016551,2]
[367567946,1750861839579,-460.0,0.00016551,2]
[367567947,1750861839589,-460.0,0.00016551,2]
[367567948,1750861839599,-460.0,0.00016551,2]
[367567949,1750861839608,-206.40617602,0.00016551,2]
[367567950,1750861839618,-465.47858194,0.00016551,2]
[367567951,1750861839627,-460.0,0.00016551,2]
[367567952,1750861839636,-460.0,0.00016551,2]
[367567953,1750861839645,-460.0,0.00016551,2]
[367567954,1750861839654,-699.62,0.00016551,2]
[367567955,1750861839663,-460.0,0.00016551,2]
[367567956,1750861839673,-460.0,0.00016551,2]
[367567957,1750861839682,-460.0,0.00016551,2]
[367567958,1750861839691,-460.0,0.00016551,2]
[367567959,1750861839701,-460.0,0.00016551,2]
[367567960,1750861839710,-460.0,0.00016551,2]
[367567961,1750861839720,-460.0,0.00016551,2]
[367567962,1750861839729,-460.0,0.00016551,2]
[367567963,1750861839740,-460.0,0.00016551,2]
[367567964,1750861839750,-460.0,0.00016551,2]
[367567965,1750861839760,-460.0,0.00016551,2]
[367567966,1750861839769,-287.77885334,0.00016551,2]
[367567967,1750861839779,-460.0,0.00016551,2]
[367567968,1750861839789,-500.0,0.00016551,2]
[367567969,1750861839799,-460.0,0.00016551,2]
[367567970,1750861839811,-460.0,0.00016551,2]
[367567971,1750861839821,-460.0,0.00016551,2]
[367567972,1750861839830,-460.0,0.00016551,2]
[367567973,1750861839839,-460.0,0.00016551,2]
[367567974,1750861839849,-460.0,0.00016551,2]
[367567975,1750861839859,-1021.65,0.00016551,2]
[367567976,1750861839868,-460.0,0.00016551,2]
[367567977,1750861839878,-460.0,0.00016551,2]
[367567978,1750861839888,-460.0,0.00016551,2]
[367567979,1750861839898,-570.43,0.00016551,2]
[367567980,1750861839908,-460.0,0.00016551,2]
[367567981,1750861839917,-460.0,0.00016551,2]
[367567982,1750861839926,-460.0,0.00016551,2]
[367567983,1750861839936,-460.0,0.00016551,2]
[367567984,1750861839945,-1930.32,0.00016551,2]
[367567985,1750861839955,-460.0,0.00016551,2]
[367567986,1750861839964,-460.0,0.00016551,2]
[367567987,1750861839974,-460.0,0.00016551,2]
[367567988,1750861839986,-460.0,0.00016551,2]
[367567989,1750861839995,-460.0,0.00016551,2]
[367567990,1750861840005,-905.52,0.00016551,2]
[367567991,1750861840014,-638.78,0.00016551,2]
[367567992,1750861840024,-460.0,0.00016551,2]
[367567993,1750861840033,-460.0,0.00016551,2]
[367567994,1750861840043,-460.0,0.00016551,2]
[367567995,1750861840052,-460.0,0.00016551,2]
[367567997,1750861840062,-460.0,0.00016551,2]
[367567999,1750861840071,-460.0,0.00016551,2]
[367568001,1750861840080,-460.0,0.00016551,2]
[367568002,1750861840089,-460.0,0.00016551,2]
[367568004,1750861840098,-460.0,0.00016551,2]
[367568005,1750861840107,-460.0,0.00016551,2]
[367568007,1750861840118,-460.0,0.00016551,2]
[367568009,1750861840127,-992.29,0.00016551,2]
[367568012,1750861840137,-460.0,0.00016552,2]
[367568014,1750861840146,-460.0,0.00016552,2]
[367568016,1750861840156,-460.0,0.00016552,2]
[367568019,1750861840165,-460.0,0.00016552,2]
[367568020,1750861840174,-460.0,0.00016552,2]
[367568021,1750861840184,-460.0,0.00016552,2]
[367568022,1750861840193,-460.0,0.00016552,2]
[367568023,1750861840202,-304.83556375,0.00016552,2]
[367568025,1750861840212,-460.0,0.00016552,2]
[367568026,1750861840221,-460.0,0.00016552,2]
[367568027,1750861840234,-460.0,0.00016552,2]
[367568028,1750861840254,-460.0,0.00016552,2]
[367568029,1750861840265,-460.0,0.00016552,2]
[367568030,1750861840276,-434.40191751,0.00016552,2]
[367568031,1750861840286,-460.0,0.00016552,2]
[367568032,1750861840296,-460.0,0.00016552,2]
[367568033,1750861840306,-460.0,0.00016552,2]
[367568034,1750861840315,-460.0,0.00016552,2]
[367568035,1750861840326,-460.0,0.00016552,2]
[367568036,1750861840335,-460.0,0.00016552,2]
[367568037,1750861840345,-460.0,0.00016552,2]
[367568039,1750861840355,-460.0,0.00016552,2]
[367568041,1750861840365,-460.0,0.00016552,2]
[367568043,1750861840375,-460.0,0.00016552,2]
[367568045,1750861840384,-460.0,0.00016552,2]
[367568047,1750861840394,-379.13208764,0.00016552,2]
[367568049,1750861840403,-460.0,0.00016552,2]
[367568051,1750861840413,-460.0,0.00016552,2]
[367568053,1750861840422,-460.0,0.00016552,2]
[367568055,1750861840432,-460.0,0.00016552,2]
[367568057,1750861840441,-460.0,0.00016552,2]
[367568059,1750861840451,-460.0,0.00016552,2]
[367568061,1750861840461,-460.0,0.00016552,2]
[367568063,1750861840470,-460.0,0.00016552,2]
[367568065,1750861840479,-460.0,0.00016552,2]
[367568067,1750861840491,-500.28912988,0.00016552,2]
[367568069,1750861840501,-430.55966655,0.00016552,2]
[367568071,1750861840511,-460.0,0.00016552,2]
[367568073,1750861840522,-440.0,0.00016552,2]
[367568075,1750861840532,-460.0,0.00016552,2]
[367568077,1750861840542,-460.0,0.00016552,2]
[367568079,1750861840552,-460.0,0.00016552,2]
[367568081,1750861840561,-500.0,0.00016552,2]
[367568083,1750861840571,-500.0,0.00016552,2]
[367568084,1750861840581,-460.0,0.00016552,2]
[367568085,1750861840590,-460.0,0.00016552,2]
[367568086,1750861840601,-471.50110099,0.00016552,2]
[367568087,1750861840615,-214.45447242,0.00016552,2]
[367568088,1750861840624,-460.0,0.00016552,2]
[367568089,1750861840634,-460.0,0.00016552,2]
[367568090,1750861840644,-460.0,0.00016552,2]
[367568092,1750861840654,-460.0,0.00016552,2]
[367568094,1750861840664,-460.0,0.00016552,2]
[367568096,1750861840674,-460.0,0.00016552,2]
[367568097,1750861840683,-460.0,0.00016552,2]
[367568098,1750861840692,-460.0,0.00016552,2]
[367568099,1750861840702,-460.0,0.00016552,2]
[367568100,1750861840711,-460.0,0.00016552,2]
[367568101,1750861840721,-254.78552679,0.00016552,2]
[367568102,1750861840732,-460.0,0.00016552,2]
[367568103,1750861840741,-460.0,0.00016552,2]
[367568104,1750861840751,-460.0,0.00016552,2]
[367568105,1750861840761,-451.57756083,0.00016552,2]
[367568106,1750861840771,-167.96,0.00016552,2]
[367568108,1750861840781,-460.0,0.00016552,2]
[367568110,1750861840791,-460.0,0.00016552,2]
[367568113,1750861840803,-460.0,0.00016552,2]
[367568114,1750861840814,-460.0,0.00016552,2]
[367568116,1750861840824,-460.0,0.00016552,2]
[367568118,1750861840833,-460.0,0.00016552,2]
[367568121,1750861840846,-460.0,0.00016552,2]
[367568123,1750861840856,-460.0,0.00016552,2]
[367568124,1750861840865,-460.0,0.00016552,2]
[367568126,1750861840876,-460.0,0.00016552,2]
[367568129,1750861840887,-589.82600972,0.00016552,2]
[367568131,1750861840897,-460.0,0.00016552,2]
[367568133,1750861840907,-707.06,0.00016552,2]
[367568135,1750861840917,-460.0,0.00016552,2]
[367568137,1750861840926,-460.0,0.00016552,2]
[367568139,1750861840936,-460.0,0.00016552,2]
[367568141,1750861840946,-460.0,0.00016552,2]
[367568143,1750861840956,-460.0,0.00016552,2]
[367568145,1750861840966,-460.0,0.00016552,2]
[367568147,1750861840976,-460.0,0.00016552,2]
[367568149,1750861840988,-5919.03,0.00016552,2]
[367568151,1750861840997,-460.0,0.00016552,2]
[367568153,1750861841006,-646.55,0.00016552,2]
[367568155,1750861841016,-460.0,0.00016552,2]
[367568157,1750861841025,-460.0,0.00016552,2]
[367568159,1750861841036,-460.0,0.00016552,2]
[367568162,1750861841045,-460.0,0.00016552,2]
[367568163,1750861841055,-790.7,0.00016552,2]
[367568166,1750861841064,-460.0,0.00016552,2]
[367568167,1750861841073,-460.0,0.00016552,2]
[367568168,1750861841083,-575.56,0.00016552,2]
[367568169,1750861841093,-460.0,0.00016552,2]
[367568170,1750861841102,-460.0,0.00016552,2]
[367568171,1750861841112,-460.0,0.00016552,2]
[367568172,1750861841121,-862.99,0.00016552,2]
[367568173,1750861841131,-460.0,0.00016552,2]
[367568174,1750861841141,-460.0,0.00016552,2]
[367568175,1750861841150,-460.0,0.00016552,2]
[367568176,1750861841160,-460.0,0.00016552,2]
[367568177,1750861841170,-403.78421503,0.00016552,2]
[367568178,1750861841179,-433.61608554,0.00016552,2]
[367568179,1750861841188,-2431.62,0.00016552,2]
[367568180,1750861841197,-460.0,0.00016552,2]
[367568181,1750861841207,-460.0,0.00016552,2]
[367568182,1750861841216,-460.0,0.00016552,2]
[367568183,1750861841225,-898.85,0.00016552,2]
[367568184,1750861841236,-460.0,0.00016552,2]
[367568185,1750861841246,-539.05848828,0.00016552,2]
[367568186,1750861841255,-460.0,0.00016552,2]
[367568187,1750861841265,-460.0,0.00016552,2]
[367568188,1750861841275,-460.0,0.00016552,2]
[367568189,1750861841284,-460.0,0.00016553,2]
[367568190,1750861841293,-406.43770879,0.00016553,2]
[367568191,1750861841303,-486.41704901,0.00016553,2]
[367568192,1750861841312,-460.0,0.00016553,2]
[367568193,1750861841321,-460.0,0.00016553,2]
[367568194,1750861841330,-460.0,0.00016553,2]
[367568195,1750861841339,-460.0,0.00016553,2]
[367568196,1750861841349,-460.0,0.00016553,2]
[367568197,1750861841358,-460.0,0.00016553,2]
[367568198,1750861841367,-294.58670006,0.00016553,2]
[367568199,1750861841377,-775.84,0.00016553,2]
[367568200,1750861841386,-460.0,0.00016553,2]
[367568201,1750861841396,-487.31,0.00016553,2]
[367568202,1750861841406,-500.0,0.00016553,2]
[367568203,1750861841416,-460.0,0.00016553,2]
[367568204,1750861841425,-460.0,0.00016553,2]
[367568205,1750861841435,-460.0,0.00016553,2]
[367568206,1750861841445,-460.0,0.00016553,2]
[367568207,1750861841454,-460.0,0.00016553,2]
[367568208,1750861841464,-460.0,0.00016553,2]
[367568209,1750861841473,-460.0,0.00016553,2]
[367568210,1750861841482,-497.45,0.00016553,2]
[367568211,1750861841492,-460.0,0.00016553,2]
[367568212,1750861841501,-1224.78,0.00016553,2]
[367568213,1750861841511,-460.0,0.00016553,2]
[367568214,1750861841520,-844.57,0.00016553,2]
[367568215,1750861841530,-460.0,0.00016553,2]
[367568216,1750861841539,-460.0,0.00016553,2]
[367568217,1750861841549,-460.0,0.00016553,2]
[367568218,1750861841558,-460.0,0.00016553,2]
[367568219,1750861841567,-531.66,0.00016553,2]
[367568220,1750861841576,-460.0,0.00016553,2]
[367568221,1750861841586,-460.0,0.00016553,2]
[367568222,1750861841595,-460.0,0.00016553,2]
[367568223,1750861841604,-2452.55,0.00016553,2]
[367568224,1750861841614,-460.0,0.00016553,2]
[367568225,1750861841623,-460.0,0.00016553,2]
[367568226,1750861841632,-460.0,0.00016553,2]
[367568227,1750861841643,-1591.01,0.00016553,2]
[367568228,1750861841652,-460.0,0.00016553,2]
[367568229,1750861841662,-460.0,0.00016553,2]
[367568230,1750861841672,-460.0,0.00016553,2]
[367568231,1750861841681,-460.0,0.00016553,2]
[367568232,1750861841691,-460.0,0.00016553,2]
[367568233,1750861841701,-1989.73,0.00016553,2]
[367568234,1750861841711,-460.0,0.00016553,2]
[367568235,1750861841720,-460.0,0.00016553,2]
[367568236,1750861841729,-6847.14,0.00016553,2]
[367568237,1750861841740,-1607.44,0.00016553,2]
[367568238,1750861841750,-460.0,0.00016553,2]
[367568239,1750861841760,-460.0,0.00016553,2]
[367568240,1750861841770,-1017.64,0.00016553,2]
[367568241,1750861841779,-1689.44,0.00016553,2]
[367568242,1750861841788,-1208.83,0.00016553,2]
[367568243,1750861841799,-460.0,0.00016553,2]
[367568244,1750861841811,-460.0,0.00016553,2]
[367568245,1750861841821,-461.93654761,0.00016553,2]
[367568246,1750861841830,-460.0,0.00016553,2]
[367568247,1750861841840,-460.0,0.00016553,2]
[367568248,1750861841850,-472.10707998,0.00016553,2]
[367568249,1750861841860,-460.0,0.00016553,2]
[367568250,1750861841869,-155.348,0.00016554,2]
[367568251,1750861841881,-500.0,0.00016554,2]
[367568252,1750861841891,-500.0,0.00016554,2]
[367568253,1750861841901,-460.0,0.00016555,2]
[367568254,1750861841910,-460.0,0.00016555,2]
[367568255,1750861841921,-460.0,0.00016555,2]
[367568256,1750861841930,-334.76399377,0.00016555,2]
[367568257,1750861841940,-511.08678463,0.00016555,2]
[367568258,1750861841949,-359.54710579,0.00016555,2]
[367568259,1750861841959,-460.0,0.00016555,2]
[367568260,1750861841969,-460.0,0.00016555,2]
[367568261,1750861841979,-460.0,0.00016555,2]
[367568262,1750861841988,-645.96,0.00016555,2]
[367568263,1750861841998,-460.0,0.00016555,2]
[367568264,1750861842007,-460.0,0.00016555,2]
[367568265,1750861842016,-460.0,0.00016555,2]
[367568266,1750861842026,-460.0,0.00016555,2]
[367568267,1750861842035,-460.0,0.00016555,2]
[367568268,1750861842046,-460.0,0.00016555,2]
[367568269,1750861842056,-460.0,0.00016555,2]
[367568270,1750861842066,-564.03374541,0.00016555,2]
[367568271,1750861842075,-460.0,0.00016555,2]
[367568272,1750861842085,-460.0,0.00016555,2]
[367568273,1750861842094,-460.0,0.00016555,2]
[367568274,1750861842103,-460.0,0.00016555,2]
[367568275,1750861842114,-460.0,0.00016555,2]
[367568276,1750861842124,-460.0,0.00016555,2]
[367568277,1750861842133,-460.0,0.00016555,2]
[367568278,1750861842143,-462.32,0.00016555,2]
[367568279,1750861842152,-460.0,0.00016555,2]
[367568280,1750861842162,-460.0,0.00016555,2]
[367568281,1750861842171,-460.0,0.00016555,2]
[367568282,1750861842181,-460.0,0.00016555,2]
[367568283,1750861842190,-460.0,0.00016555,2]
[367568284,1750861842199,-460.0,0.00016555,2]
[367568285,1750861842209,-460.0,0.00016555,2]
[367568286,1750861842218,-460.0,0.00016555,2]
[367568287,1750861842228,-460.0,0.00016555,2]
[367568288,1750861842238,-460.0,0.00016555,2]
[367568289,1750861842247,-460.0,0.00016555,2]
[367568290,1750861842257,-460.0,0.00016555,2]
[367568291,1750861842266,-460.0,0.00016555,2]
[367568292,1750861842275,-460.0,0.00016555,2]
[367568293,1750861842285,-460.0,0.00016555,2]
[367568294,1750861842294,-460.0,0.00016555,2]
[367568295,1750861842304,-460.0,0.00016555,2]
[367568296,1750861842313,-460.0,0.00016555,2]
[367568297,1750861842323,-464.74664059,0.00016555,2]
[367568298,1750861842333,-460.0,0.00016555,2]
[367568299,1750861842342,-521.68878635,0.00016555,2]
[367568300,1750861842351,-460.0,0.00016555,2]
[367568301,1750861842361,-460.0,0.00016555,2]
[367568302,1750861842371,-460.0,0.00016555,2]
[367568303,1750861842380,-460.0,0.00016555,2]
[367568304,1750861842390,-460.0,0.00016555,2]
[367568305,1750861842399,-460.0,0.00016555,2]
[367568306,1750861842409,-460.0,0.00016555,2]
[367568307,1750861842419,-460.0,0.00016555,2]
[367568308,1750861842428,-460.0,0.00016555,2]
[367568309,1750861842437,-460.0,0.00016555,2]
[367568310,1750861842447,-460.0,0.00016555,2]
[367568311,1750861842457,-553.41547333,0.00016555,2]
[367568312,1750861842466,-460.0,0.00016555,2]
[367568313,1750861842475,-460.0,0.00016555,2]
[367568315,1750861842486,-460.0,0.00016555,2]
[367568317,1750861842496,-460.0,0.00016555,2]
[367568318,1750861842505,-460.0,0.00016555,2]
[367568320,1750861842514,-460.0,0.00016555,2]
[367568336,1750861842523,-460.0,0.00016555,2]
[367568339,1750861842665,-460.0,0.00016555,2]
[367568341,1750861842674,-460.0,0.00016555,2]
[367568343,1750861842683,-460.0,0.00016555,2]
[367568345,1750861842692,-505.75232097,0.00016555,2]
[367568347,1750861842701,-406.01149113,0.00016555,2]
[367568349,1750861842710,-460.0,0.00016555,2]
[367568350,1750861842719,-460.0,0.00016555,2]
[367568353,1750861842728,-186.13720426,0.00016557,2]
[367568355,1750861842739,-168.0,0.00016572,2]
[367568356,1750861842748,-168.0,0.00016603,2]
[367568358,1750861842758,-1688.0,0.00016657,2]
[367568360,1750861842768,-500.0,0.00016657,2]
[367568362,1750861842778,-5000.0,0.00016657,2]
[367568364,1750861842787,-500.0,0.00016657,2]
[367568366,1750861842796,-500.0,0.00016657,2]
[367568369,1750861842810,-500.0,0.00016657,2]
[367568370,1750861842819,-500.0,0.00016657,2]
[367568373,1750861842829,-500.0,0.00016657,2]
[367568375,1750861842838,-207.4,0.00016657,2]
[367568377,1750861842849,-500.0,0.00016657,2]
[367568379,1750861842861,-450.85333529,0.00016657,2]
[367568381,1750861842870,-500.0,0.00016657,2]
[367568383,1750861842880,-500.0,0.00016657,2]
[367568385,1750861842890,-500.0,0.00016657,2]
[367568388,1750861842900,-500.0,0.00016657,2]
[367568391,1750861842910,-500.0,0.00016657,2]
[367568394,1750861842919,-500.0,0.00016657,2]
[367568398,1750861842929,-500.0,0.00016657,2]
[367568400,1750861842938,-500.0,0.00016657,2]
[367568404,1750861842947,-500.0,0.00016657,2]
[367568406,1750861842956,-500.0,0.00016657,2]
[367568408,1750861842966,-500.0,0.00016657,2]
[367568410,1750861842975,-3398.34804141,0.00016657,2]
[367568412,1750861842986,-25000.0,0.00016657,2]
[367568414,1750861842995,-194.051331,0.00016657,2]
[367568416,1750861843004,-151.0,0.00016657,2]
[367568418,1750861843015,-151.0,0.00016657,2]